fUST/lending_fUST_20250719
["ID","MTS","AMOUNT","RATE_DAILY","PERIOD"]
[373086956,1752858337624,-460.0,0.00016456,2]
[373086957,1752858337653,-460.0,0.00016458,2]
[373086958,1752858337684,-460.0,0.00016458,2]
[373086959,1752858337713,-460.0,0.00016458,2]
[373086960,1752858337744,-460.0,0.00016458,2]
[373086961,1752858337772,-460.0,0.00016458,2]
[373086962,1752858338452,-7717.45719803,0.000165,2]
[373086963,1752858338614,-460.0,0.00016456,2]
[373086964,1752858338641,-448.34456219,0.000165,2]
[373086965,1752858338677,-8183.31087562,0.000165,2]
[373086966,1752858338913,-5000.0,0.000165,2]
[373086967,1752858339149,-959.67709545,0.000165,2]
[373086968,1752858339754,460.0,0.00016456,2]
[373086969,1752858340232,639.7847303,0.000165,2]
[373086970,1752858341265,426.52315353,0.000165,2]
[373086971,1752858342214,284.34876902,0.000165,2]
[373086972,1752858343380,189.56584602,0.000165,2]
[373086973,1752858343555,1731.1,0.00016457,2]
[373086974,1752858344360,151.0,0.000165,2]
[373086975,1752858345725,228.13169203,0.000165,2]
[373086977,1752858349451,460.0,0.00016456,2]
[373086978,1752858354455,460.0,0.00016458,2]
[373086979,1752858354743,460.0,0.00016456,2]
[373086980,1752858355277,2590.1916182,0.000165,2]
[373086981,1752858355299,2409.8083818,0.000165,2]
[373086983,1752858357683,460.0,0.00016457,2]
[373086984,1752858363147,880.13,0.00016457,2]
[373086986,1752858371042,5000.0,0.000165,2]
[373086987,1752858371522,460.0,0.00016462,2]
[373086988,1752858371885,790.0616182,0.00016456,2]
[373086989,1752858371908,903.2083818,0.00016456,2]
[373086990,1752858372858,460.0,0.00016458,2]
[373086991,1752858373520,956.3238574,0.000165,2]
[373086992,1752858374525,637.54923827,0.000165,2]
[373086993,1752858375648,425.03282551,0.000165,2]
[373086994,1752858376638,283.35521701,0.000165,2]
[373086995,1752858377616,188.90347801,0.000165,2]
[373086996,1752858380210,151.0,0.000165,2]
[373086997,1752858381009,509.49138637,0.00016456,2]
[373086998,1752858381382,226.80695601,0.000165,2]
[373087000,1752858381764,1359.29,0.0001646,2]
[373087001,1752858381794,460.0,0.00016456,2]
[373087002,1752858382929,400.40905759,0.00016456,2]
[373087003,1752858383125,460.0,0.00016457,2]
[373087004,1752858383790,522.98,0.00016462,2]
[373087005,1752858389910,2055.64960203,0.000165,2]
[373087006,1752858389932,2944.35039797,0.000165,2]
[373087007,1752858396360,460.0,0.00016458,2]
[373087008,1752858397649,1326.43,0.00016461,2]
[373087009,1752858401520,150.0,0.00014622,2]
[373087010,1752858402452,150.0,0.00015318,2]
[373087011,1752858402869,150.0,0.00016015,2]
[373087012,1752858405090,4819.21960203,0.000165,2]
[373087016,1752858472504,150.0,0.00014621,2]
[373087052,1752858598762,5000.0,0.000164,2]
[373087053,1752858603069,229.688738,0.00023,30]
[373087054,1752858603367,229.688738,0.000225,30]
[373087056,1752858615293,5000.0,0.000164,2]
[373087075,1752858631682,5000.0,0.000164,2]
[373087121,1752858632310,-300.0,0.00016455,2]
[373087123,1752858632320,-480.0,0.00016455,2]
[373087125,1752858632329,-95.86033315,0.00016455,2]
[373087127,1752858632341,-364.13966685,0.00016455,2]
[373087129,1752858632350,-460.0,0.00016456,2]
[373087131,1752858632360,-460.0,0.00016456,2]
[373087133,1752858632369,-460.0,0.00016456,2]
[373087135,1752858632379,-460.0,0.00016456,2]
[373087137,1752858632388,-460.0,0.00016456,2]
[373087139,1752858632398,-460.0,0.00016456,2]
[373087141,1752858632409,-605.39,0.00016456,2]
[373087143,1752858632419,-460.0,0.00016456,2]
[373087145,1752858632428,-460.0,0.00016456,2]
[373087147,1752858632438,-1644.5,0.00016456,2]
[373087149,1752858632448,-460.0,0.00016456,2]
[373087151,1752858632458,-852.85,0.00016456,2]
[373087153,1752858632467,-460.0,0.00016456,2]
[373087156,1752858632481,-460.0,0.00016456,2]
[373087157,1752858632492,-460.0,0.00016456,2]
[373087158,1752858632501,-460.0,0.00016456,2]
[373087159,1752858632510,-460.0,0.00016456,2]
[373087160,1752858632519,-2496.21,0.00016456,2]
[373087161,1752858632528,-460.0,0.00016456,2]
[373087162,1752858632537,-460.0,0.00016456,2]
[373087163,1752858632546,-460.0,0.00016456,2]
[373087164,1752858632555,-460.0,0.00016456,2]
[373087165,1752858632564,-460.0,0.00016456,2]
[373087166,1752858632574,-460.0,0.00016456,2]
[373087167,1752858632583,-460.0,0.00016456,2]
[373087168,1752858632594,-2073.39,0.00016456,2]
[373087169,1752858632603,-460.0,0.00016456,2]
[373087170,1752858632612,-5605.67,0.00016456,2]
[373087171,1752858632622,-460.0,0.00016456,2]
[373087172,1752858632631,-460.0,0.00016456,2]
[373087173,1752858632641,-460.0,0.00016457,2]
[373087174,1752858632661,-460.0,0.00016457,2]
[373087175,1752858632671,-460.0,0.00016457,2]
[373087176,1752858632681,-460.0,0.00016457,2]
[373087177,1752858632691,-460.0,0.00016457,2]
[373087178,1752858632702,-460.0,0.00016457,2]
[373087179,1752858632713,-484.83,0.00016457,2]
[373087180,1752858632727,-477.42,0.00016457,2]
[373087181,1752858632741,-460.0,0.00016457,2]
[373087182,1752858632757,-460.0,0.00016457,2]
[373087184,1752858632767,-2400.36,0.00016457,2]
[373087186,1752858632777,-186.85876561,0.00016457,2]
[373087188,1752858632787,-460.0,0.00016457,2]
[373087190,1752858632796,-460.0,0.00016458,2]
[373087193,1752858632807,-460.0,0.00016458,2]
[373087195,1752858632817,-460.0,0.00016458,2]
[373087197,1752858632827,-4644.07,0.00016458,2]
[373087199,1752858632836,-460.0,0.00016458,2]
[373087201,1752858632846,-1229.7,0.00016458,2]
[373087203,1752858632856,-460.0,0.00016458,2]
[373087205,1752858632866,-460.0,0.00016458,2]
[373087207,1752858632876,-4623.0,0.0001646,2]
[373087209,1752858632886,-1513.01,0.0001646,2]
[373087211,1752858632895,-460.0,0.0001646,2]
[373087213,1752858632905,-525.98,0.00016462,2]
[373087215,1752858632915,-1021.92,0.00016462,2]
[373087217,1752858632925,-830.87,0.0001672,3]
[373087219,1752858632937,-866.0,0.00016728,2]
[373087222,1752858632947,-460.0,0.00016728,2]
[373087224,1752858632957,-460.0,0.00016728,2]
[373087226,1752858632967,-460.0,0.00016728,2]
[373087228,1752858632978,-460.0,0.00016728,2]
[373087230,1752858632988,-460.0,0.00016728,2]
[373087232,1752858632997,-212.05195182,0.00016728,2]
[373087234,1752858633007,-358.11342933,0.00016728,2]
[373087236,1752858633021,-101.88657067,0.00016728,2]
[373087238,1752858633030,-460.0,0.00016728,2]
[373087241,1752858633040,-460.0,0.00016728,2]
[373087243,1752858633050,-460.0,0.00016728,2]
[373087245,1752858633060,-163.35342933,0.00016728,2]
[373087719,1752858637915,-460.0,0.00016455,2]
[373087721,1752858637925,-16.96,0.00016455,2]
[373087724,1752858637937,-443.04,0.00016455,2]
[373087726,1752858637947,-1774.22657067,0.00016728,2]
[373087728,1752858637957,-460.0,0.00016728,2]
[373087730,1752858637966,-460.0,0.00016728,2]
[373087732,1752858637976,-460.0,0.00016728,2]
[373087734,1752858637986,-460.0,0.00016729,2]
[373087736,1752858637995,-460.0,0.00016729,2]
[373087738,1752858638005,-460.0,0.00016729,2]
[373087740,1752858638014,-460.0,0.00016729,2]
[373087742,1752858638024,-460.0,0.00016729,2]
[373087744,1752858638034,-460.0,0.00016729,2]
[373087746,1752858638045,-460.0,0.00016729,2]
[373087748,1752858638054,-460.0,0.00016729,2]
[373087750,1752858638063,-460.0,0.00016729,2]
[373087752,1752858638072,-460.0,0.00016729,2]
[373087754,1752858638081,-189.49543788,0.00016729,2]
[373087756,1752858638091,-460.0,0.00016729,2]
[373087758,1752858638100,-460.0,0.00016729,2]
[373087760,1752858638110,-460.0,0.00016729,2]
[373087762,1752858638119,-461.74527326,0.00016729,2]
[373087764,1752858638128,-460.0,0.00016729,2]
[373087766,1752858638137,-460.0,0.00016729,2]
[373087768,1752858638146,-460.0,0.00016729,2]
[373087770,1752858638155,-392.55865919,0.00016729,2]
[373087772,1752858638168,-67.44134081,0.00016729,2]
[373087774,1752858638178,-460.0,0.00016729,2]
[373087776,1752858638187,-591.57939857,0.00016729,2]
[373087778,1752858638196,-420.33992522,0.00016729,2]
[373087780,1752858638206,-460.0,0.00016729,2]
[373087782,1752858638216,-460.0,0.00016729,2]
[373087784,1752858638226,-460.0,0.00016729,2]
[373087786,1752858638238,-460.0,0.00016729,2]
[373087788,1752858638248,-460.0,0.00016729,2]
[373087790,1752858638257,-460.0,0.00016729,2]
[373087792,1752858638266,-380.768116,0.00016729,2]
[373087794,1752858638276,-460.0,0.00016729,2]
[373087796,1752858638285,-460.0,0.00016729,2]
[373087798,1752858638295,-460.0,0.00016729,2]
[373087800,1752858638305,-460.0,0.00016729,2]
[373087802,1752858638315,-460.0,0.00016729,2]
[373087804,1752858638325,-460.0,0.00016729,2]
[373087806,1752858638334,-460.0,0.00016729,2]
[373087808,1752858638343,-460.0,0.00016729,2]
[373087810,1752858638353,-460.0,0.00016729,2]
[373087812,1752858638363,-460.0,0.00016729,2]
[373087814,1752858638372,-604.29,0.00016729,2]
[373087816,1752858638382,-460.0,0.00016729,2]
[373087818,1752858638391,-460.0,0.00016729,2]
[373087820,1752858638401,-500.0,0.00016729,2]
[373087822,1752858638416,-460.0,0.00016729,2]
[373087824,1752858638426,-460.0,0.00016729,2]
[373087826,1752858638435,-460.0,0.00016729,2]
[373087828,1752858638445,-462.06136971,0.00016729,2]
[373087830,1752858638456,-460.0,0.00016729,2]
[373087832,1752858638465,-460.0,0.00016729,2]
[373087834,1752858638475,-460.0,0.00016729,2]
[373087836,1752858638488,-460.0,0.00016729,2]
[373087838,1752858638498,-460.0,0.00016729,2]
[373087840,1752858638507,-460.0,0.00016729,2]
[373087842,1752858638517,-460.0,0.00016729,2]
[373087844,1752858638526,-460.0,0.00016729,2]
[373087846,1752858638535,-460.0,0.00016729,2]
[373087848,1752858638545,-343.23801622,0.00016729,2]
[373087850,1752858638554,-546.34278475,0.00016729,2]
[373087852,1752858638564,-549.66666634,0.00016729,2]
[373087854,1752858638574,-460.0,0.00016729,2]
[373087856,1752858638583,-460.0,0.00016729,2]
[373087858,1752858638593,-460.0,0.00016729,2]
[373087860,1752858638602,-460.0,0.00016729,2]
[373087862,1752858638613,-460.0,0.00016729,2]
[373087864,1752858638622,-461.75750865,0.00016729,2]
[373087866,1752858638631,-460.0,0.00016729,2]
[373087868,1752858638640,-460.0,0.00016729,2]
[373087883,1752858638776,-460.0,0.00016729,2]
[373087886,1752858638787,-460.0,0.00016729,2]
[373087888,1752858638797,-388.23982907,0.00016729,2]
[373087890,1752858638808,-460.0,0.00016729,2]
[373087892,1752858638817,-460.0,0.00016729,2]
[373087894,1752858638827,-460.0,0.00016729,2]
[373087896,1752858638836,-460.0,0.00016729,2]
[373087898,1752858638846,-508.2040533,0.00016729,2]
[373087900,1752858638855,-460.0,0.00016729,2]
[373087902,1752858638864,-460.0,0.00016729,2]
[373087904,1752858638873,-460.0,0.00016729,2]
[373087906,1752858638884,-211.56571191,0.00016729,2]
[373087908,1752858638894,-460.0,0.00016729,2]
[373087910,1752858638903,-460.0,0.00016729,2]
[373087912,1752858638913,-460.0,0.00016729,2]
[373087914,1752858638923,-711.11,0.00016729,2]
[373087917,1752858638940,-450.10184578,0.00016729,2]
[373087919,1752858638950,-460.0,0.00016729,2]
[373087921,1752858638960,-461.3476032,0.00016729,2]
[373087922,1752858638969,-460.0,0.00016729,2]
[373087924,1752858638982,-460.0,0.00016729,2]
[373087926,1752858638992,-460.0,0.00016729,2]
[373087928,1752858639001,-460.0,0.00016729,2]
[373087931,1752858639012,-460.0,0.00016729,2]
[373087933,1752858639022,-460.0,0.00016729,2]
[373087935,1752858639032,-460.0,0.00016729,2]
[373087937,1752858639041,-460.0,0.00016729,2]
[373087939,1752858639050,-460.0,0.00016729,2]
[373087941,1752858639059,-460.0,0.00016729,2]
[373087943,1752858639067,-460.0,0.00016729,2]
[373087945,1752858639077,-460.0,0.00016729,2]
[373087947,1752858639087,-460.0,0.00016729,2]
[373087949,1752858639096,-460.0,0.00016729,2]
[373087951,1752858639106,-460.0,0.00016729,2]
[373087953,1752858639116,-460.0,0.00016729,2]
[373087955,1752858639126,-460.0,0.00016729,2]
[373087957,1752858639135,-460.0,0.00016729,2]
[373087959,1752858639145,-460.0,0.00016729,2]
[373087961,1752858639154,-460.0,0.00016729,2]
[373087963,1752858639164,-460.0,0.00016729,2]
[373087965,1752858639174,-460.0,0.00016729,2]
[373087967,1752858639183,-460.0,0.00016729,2]
[373087969,1752858639193,-460.0,0.00016729,2]
[373087971,1752858639202,-460.0,0.00016729,2]
[373087973,1752858639211,-460.0,0.00016729,2]
[373087974,1752858639221,-550.74010506,0.00016729,2]
[373087976,1752858639234,-460.0,0.00016729,2]
[373087978,1752858639243,-460.0,0.00016729,2]
[373087980,1752858639252,-925.97,0.00016729,2]
[373087982,1752858639261,-460.0,0.00016729,2]
[373087984,1752858639271,-460.0,0.00016729,2]
[373087986,1752858639281,-460.0,0.00016729,2]
[373087988,1752858639290,-460.0,0.00016729,2]
[373087990,1752858639300,-460.0,0.00016729,2]
[373087992,1752858639310,-460.0,0.00016729,2]
[373087994,1752858639319,-373.36573276,0.00016729,2]
[373087996,1752858639329,-460.0,0.00016729,2]
[373087998,1752858639338,-460.0,0.00016729,2]
[373088000,1752858639347,-460.0,0.00016729,2]
[373088002,1752858639357,-460.0,0.00016729,2]
[373088004,1752858639366,-460.0,0.00016729,2]
[373088005,1752858639376,-460.0,0.00016729,2]
[373088006,1752858639385,-460.0,0.00016729,2]
[373088007,1752858639394,-460.0,0.00016729,2]
[373088008,1752858639403,-460.0,0.00016729,2]
[373088009,1752858639417,-460.0,0.00016729,2]
[373088010,1752858639426,-460.0,0.00016729,2]
[373088011,1752858639436,-460.0,0.00016729,2]
[373088013,1752858639445,-460.0,0.00016729,2]
[373088014,1752858639454,-460.0,0.00016729,2]
[373088016,1752858639463,-460.0,0.00016729,2]
[373088018,1752858639473,-460.0,0.00016729,2]
[373088020,1752858639484,-460.0,0.00016729,2]
[373088022,1752858639494,-460.0,0.00016729,2]
[373088024,1752858639503,-460.0,0.00016729,2]
[373088026,1752858639513,-460.0,0.00016729,2]
[373088028,1752858639522,-460.0,0.00016729,2]
[373088030,1752858639532,-460.0,0.00016729,2]
[373088032,1752858639542,-460.0,0.00016729,2]
[373088034,1752858639551,-460.0,0.00016729,2]
[373088036,1752858639560,-460.0,0.00016729,2]
[373088038,1752858639570,-604.8,0.00016729,2]
[373088040,1752858639579,-460.0,0.00016729,2]
[373088042,1752858639589,-1112.11,0.00016729,2]
[373088044,1752858639598,-460.0,0.00016729,2]
[373088046,1752858639607,-460.0,0.00016729,2]
[373088048,1752858639616,-460.0,0.00016729,2]
[373088050,1752858639626,-460.0,0.0001673,2]
[373088053,1752858639635,-502.42619323,0.0001673,2]
[373088056,1752858639646,-460.0,0.0001673,2]
[373088060,1752858639656,-460.0,0.0001673,2]
[373088062,1752858639667,-460.0,0.0001673,2]
[373088063,1752858639676,-460.0,0.0001673,2]
[373088066,1752858639686,-460.0,0.0001673,2]
[373088068,1752858639696,-460.0,0.0001673,2]
[373088071,1752858639707,-460.0,0.0001673,2]
[373088072,1752858639716,-460.0,0.0001673,2]
[373088075,1752858639726,-460.0,0.0001673,2]
[373088077,1752858639737,-460.0,0.0001673,2]
[373088079,1752858639746,-460.0,0.0001673,2]
[373088081,1752858639756,-460.0,0.0001673,2]
[373088083,1752858639765,-460.0,0.0001673,2]
[373088085,1752858639774,-460.0,0.0001673,2]
[373088087,1752858639784,-460.0,0.0001673,2]
[373088089,1752858639793,-460.0,0.0001673,2]
[373088091,1752858639803,-460.0,0.0001673,2]
[373088093,1752858639812,-460.0,0.0001673,2]
[373088095,1752858639821,-460.0,0.0001673,2]
[373088097,1752858639830,-460.0,0.0001673,2]
[373088099,1752858639839,-483.41853903,0.0001673,2]
[373088101,1752858639849,-460.0,0.0001673,2]
[373088103,1752858639859,-460.0,0.0001673,2]
[373088105,1752858639868,-460.0,0.0001673,2]
[373088107,1752858639877,-460.0,0.0001673,2]
[373088109,1752858639887,-460.0,0.0001673,2]
[373088111,1752858639897,-460.0,0.0001673,2]
[373088113,1752858639907,-460.0,0.0001673,2]
[373088115,1752858639917,-460.0,0.0001673,2]
[373088117,1752858639926,-634.72,0.0001673,2]
[373088118,1752858639948,-460.0,0.0001673,2]
[373088120,1752858639958,-460.0,0.0001673,2]
[373088122,1752858639967,-460.0,0.0001673,2]
[373088125,1752858639977,-460.0,0.0001673,2]
[373088127,1752858639988,-460.0,0.0001673,2]
[373088129,1752858639997,-460.0,0.0001673,2]
[373088131,1752858640007,-460.0,0.0001673,2]
[373088133,1752858640016,-460.0,0.0001673,2]
[373088135,1752858640026,-460.0,0.0001673,2]
[373088137,1752858640035,-460.0,0.0001673,2]
[373088139,1752858640044,-460.0,0.0001673,2]
[373088141,1752858640054,-605.39,0.0001673,2]
[373088143,1752858640063,-460.0,0.0001673,2]
[373088145,1752858640072,-461.73,0.0001673,2]
[373088147,1752858640082,-1644.5,0.0001673,2]
[373088149,1752858640091,-460.0,0.0001673,2]
[373088151,1752858640101,-852.85,0.0001673,2]
[373088153,1752858640111,-460.0,0.0001673,2]
[373088155,1752858640121,-460.0,0.0001673,2]
[373088157,1752858640130,-460.0,0.0001673,2]
[373088159,1752858640139,-460.0,0.0001673,2]
[373088160,1752858640148,-460.0,0.0001673,2]
[373088163,1752858640157,-2496.21,0.0001673,2]
[373088165,1752858640167,-460.0,0.0001673,2]
[373088167,1752858640177,-460.0,0.0001673,2]
[373088169,1752858640186,-462.20652156,0.0001673,2]
[373088171,1752858640195,-460.0,0.0001673,2]
[373088172,1752858640204,-460.0,0.0001673,2]
[373088174,1752858640214,-460.0,0.0001673,2]
[373088176,1752858640223,-2073.39,0.0001673,2]
[373088178,1752858640234,-460.0,0.0001673,2]
[373088180,1752858640244,-5605.67,0.0001673,2]
[373088182,1752858640254,-460.0,0.0001673,2]
[373088184,1752858640263,-460.0,0.0001673,2]
[373088186,1752858640273,-422.86409404,0.00016731,2]
[373088188,1752858640283,-460.0,0.00016731,2]
[373088190,1752858640293,-460.0,0.00016731,2]
[373088192,1752858640303,-460.0,0.00016731,2]
[373088194,1752858640312,-460.0,0.00016731,2]
[373088196,1752858640322,-460.0,0.00016731,2]
[373088198,1752858640331,-535.92873927,0.00016731,2]
[373088200,1752858640342,-475.75914305,0.00016731,2]
[373088202,1752858640351,-358.93871798,0.00016731,2]
[373088204,1752858640360,-460.0,0.00016731,2]
[373088206,1752858640370,-460.0,0.00016731,2]
[373088208,1752858640379,-460.0,0.00016731,2]
[373088210,1752858640389,-500.0,0.00016731,2]
[373088212,1752858640399,-460.0,0.00016731,2]
[373088214,1752858640411,-460.0,0.00016731,2]
[373088216,1752858640421,-1731.1,0.00016731,2]
[373088218,1752858640430,-460.0,0.00016731,2]
[373088220,1752858640440,-460.0,0.00016731,2]
[373088222,1752858640451,-460.0,0.00016731,2]
[373088224,1752858640460,-460.0,0.00016731,2]
[373088226,1752858640470,-460.0,0.00016731,2]
[373088228,1752858640481,-460.0,0.00016731,2]
[373088230,1752858640491,-460.0,0.00016731,2]
[373088232,1752858640500,-460.0,0.00016731,2]
[373088234,1752858640509,-460.0,0.00016731,2]
[373088236,1752858640519,-460.0,0.00016731,2]
[373088238,1752858640528,-484.83,0.00016731,2]
[373088240,1752858640538,-477.42,0.00016731,2]
[373088242,1752858640547,-460.0,0.00016731,2]
[373088244,1752858640557,-681.11,0.00016731,2]
[373088246,1752858640565,-460.0,0.00016731,2]
[373088248,1752858640575,-2400.36,0.00016731,2]
[373088250,1752858640585,-460.0,0.00016731,2]
[373088252,1752858640594,-460.0,0.00016731,2]
[373088254,1752858640603,-460.0,0.00016732,2]
[373088256,1752858640613,-460.0,0.00016732,2]
[373088258,1752858640625,-357.26408557,0.00016732,2]
[373088261,1752858640635,-460.0,0.00016732,2]
[373088262,1752858640644,-290.70041192,0.00016732,2]
[373088265,1752858640654,-460.0,0.00016732,2]
[373088267,1752858640663,-295.87952164,0.00016732,2]
[373088269,1752858640673,-460.0,0.00016732,2]
[373088271,1752858640683,-255.55403481,0.00016732,2]
[373088273,1752858640692,-460.0,0.00016732,2]
[373088275,1752858640702,-460.0,0.00016732,2]
[373088277,1752858640711,-460.0,0.00016732,2]
[373088279,1752858640721,-460.0,0.00016732,2]
[373088281,1752858640732,-460.0,0.00016732,2]
[373088283,1752858640742,-460.0,0.00016732,2]
[373088285,1752858640751,-460.0,0.00016732,2]
[373088287,1752858640760,-460.0,0.00016732,2]
[373088289,1752858640769,-460.0,0.00016732,2]
[373088291,1752858640778,-460.0,0.00016732,2]
[373088293,1752858640788,-460.0,0.00016732,2]
[373088295,1752858640797,-460.0,0.00016732,2]
[373088297,1752858640806,-460.0,0.00016732,2]
[373088299,1752858640815,-460.0,0.00016732,2]
[373088301,1752858640825,-460.0,0.00016732,2]
[373088303,1752858640834,-460.0,0.00016732,2]
[373088305,1752858640843,-460.0,0.00016732,2]
[373088307,1752858640853,-460.0,0.00016732,2]
[373088309,1752858640862,-460.0,0.00016732,2]
[373088311,1752858640871,-460.0,0.00016732,2]
[373088313,1752858640880,-460.0,0.00016732,2]
[373088315,1752858640890,-460.0,0.00016732,2]
[373088317,1752858640900,-460.0,0.00016732,2]
[373088319,1752858640909,-460.0,0.00016732,2]
[373088321,1752858640919,-460.0,0.00016732,2]
[373088323,1752858640929,-460.0,0.00016732,2]
[373088325,1752858640939,-460.0,0.00016732,2]
[373088326,1752858640948,-460.0,0.00016732,2]
[373088329,1752858640958,-460.0,0.00016732,2]
[373088330,1752858640967,-460.0,0.00016732,2]
[373088332,1752858640977,-460.0,0.00016732,2]
[373088334,1752858640987,-460.0,0.00016732,2]
[373088336,1752858640997,-460.0,0.00016732,2]
[373088338,1752858641007,-460.0,0.00016732,2]
[373088341,1752858641016,-460.0,0.00016732,2]
[373088342,1752858641025,-460.0,0.00016732,2]
[373088344,1752858641035,-460.0,0.00016732,2]
[373088346,1752858641044,-460.0,0.00016732,2]
[373088348,1752858641054,-460.0,0.00016732,2]
[373088351,1752858641063,-460.0,0.00016732,2]
[373088353,1752858641073,-460.0,0.00016732,2]
[373088355,1752858641082,-460.0,0.00016732,2]
[373088357,1752858641091,-460.0,0.00016732,2]
[373088359,1752858641100,-4644.07,0.00016732,2]
[373088361,1752858641110,-1229.7,0.00016732,2]
[373088363,1752858641119,-597.929259,0.00016732,2]
[373088365,1752858641128,-460.0,0.00016732,2]
[373088367,1752858641138,-151.0,0.00016734,2]
[373088369,1752858641148,-1122.5,0.00016734,2]
[373088371,1752858641157,-1890.89,0.00016734,2]
[373088373,1752858641167,-460.0,0.00016734,2]
[373088375,1752858641176,-199.56185223,0.00016734,2]
[373088377,1752858641185,-151.0,0.00016734,2]
[373088379,1752858641195,-151.0,0.00016734,2]
[373088381,1752858641204,-151.0,0.00016734,2]
[373088383,1752858641213,-151.0,0.00016734,2]
[373088385,1752858641222,-151.0,0.00016734,2]
[373088386,1752858641232,-1359.29,0.00016734,2]
[373088387,1752858641242,-4623.0,0.00016734,2]
[373088388,1752858641251,-736.0,0.00016734,2]
[373088389,1752858641261,-198.0,0.00016734,2]
[373088390,1752858641365,-198.0,0.00016734,2]
[373088391,1752858641374,-198.0,0.00016734,2]
[373088392,1752858641385,-500.0,0.00016734,2]
[373088393,1752858641394,-151.0,0.00016734,2]
[373088394,1752858641405,-151.0,0.00016734,2]
[373088395,1752858641417,-151.0,0.00016734,2]
[373088396,1752858641427,-151.0,0.00016734,2]
[373088397,1752858641436,-1513.01,0.00016734,2]
[373088398,1752858641446,-151.0,0.00016734,2]
[373088399,1752858641455,-151.0,0.00016734,2]
[373088400,1752858641465,-245.0,0.00016734,2]
[373088401,1752858641474,-460.0,0.00016734,2]
[373088402,1752858641486,-500.0,0.00016735,2]
[373088403,1752858641497,-460.0,0.00016736,2]
[373088404,1752858641506,-476.63770106,0.00016736,2]
[373088405,1752858641515,-522.98,0.00016736,2]
[373088406,1752858641525,-525.98,0.00016736,2]
[373088407,1752858641535,-1021.92,0.00016736,2]
[373088408,1752858641544,-150.0,0.00016747,2]
[373088409,1752858641554,-1535.10716811,0.0001685,2]
[373088410,1752858641563,-1795.64377922,0.0001685,2]
[373088411,1752858641573,-4184.82977305,0.00016865,2]
[373088412,1752858641582,-680.26999745,0.00016899,2]
[373088413,1752858641591,-680.26999745,0.00016899,2]
[373088414,1752858641601,-482.40937624,0.00016899,2]
[373088415,1752858641610,-680.26999745,0.00016899,2]
[373088416,1752858641620,-680.26999745,0.00016899,2]
[373088417,1752858641629,-680.26999745,0.00016899,2]
[373088418,1752858641639,-680.26999745,0.00016899,2]
[373088419,1752858641648,-680.26999745,0.00016899,2]
[373088420,1752858641657,-680.26999745,0.00016899,2]
[373088421,1752858641667,-680.26999745,0.00016899,2]
[373088422,1752858641676,-680.26999745,0.00016899,2]
[373088423,1752858641687,-680.26999745,0.00016899,2]
[373088424,1752858641696,-680.26999745,0.00016899,2]